bitfinex-derivatives/quotes_ETHF0:USTF0_20250422
["timestamp","ask_amount","ask_price","bid_price","bid_amount"]
[1745287482371,4.47388278,1591.5,1591.4,6.322]
[1745287482572,9.47388278,1591.5,1591.4,6.322]
[1745287483075,4.47388278,1591.5,1591.4,6.322]
[1745287483871,4.47388278,1591.5,1591.4,4.94152444]
[1745287484073,5.37908278,1591.5,1591.4,4.94152444]
[1745287485070,10.37908278,1591.5,1591.4,4.94152444]
[1745287487669,10.37908278,1591.5,1591.4,3.63334444]
[1745287488075,1.2568,1591.3,1591.2,6.322]
[1745287488376,4.4646,1591.3,1591.2,6.322]
[1745287488778,6.2625,1591.3,1591.2,6.322]
[1745287489070,6.2625,1591.3,1591.2,12.644]
[1745287489277,6.2625,1591.3,1591.2,6.322]
[1745287490873,1.25678,1591.4,1591.2,7.57883]
[1745287491072,4.47393278,1591.5,1591.3,3.09029]
[1745287491276,4.47393278,1591.5,1591.4,1.8335]
[1745287492278,4.47393278,1591.5,1591.4,8.1555]
[1745287494373,4.47393278,1591.5,1591.4,9.41222]
[1745287494574,0.00943278,1591.5,1591.4,9.41222]
[1745287495281,1.26608278,1591.5,1591.4,14.30422]
[1745287495681,1.26608278,1591.5,1591.4,13.0475]
[1745287496184,4.47388278,1591.5,1591.4,13.0475]
[1745287497178,1.26608278,1591.5,1591.4,13.0475]
[1745287498377,4.47388278,1591.5,1591.4,13.0475]
[1745287499282,4.47388278,1591.5,1591.4,14.30422]
[1745287499677,4.47388278,1591.5,1591.4,13.0475]
[1745287500077,3.21723278,1591.5,1591.4,14.30422]
[1745287500284,4.47388278,1591.5,1591.4,14.30422]
[1745287500484,4.47388278,1591.5,1591.4,13.0475]
[1745287500981,4.47388278,1591.5,1591.4,14.30422]
[1745287501189,1.26608278,1591.5,1591.4,14.30422]
[1745287501480,1.26608278,1591.5,1591.4,13.0475]
[1745287502590,1.26608278,1591.5,1591.4,14.30422]
[1745287503175,0.00943278,1591.5,1591.4,14.30422]
[1745287503381,1.26608278,1591.5,1591.4,14.30422]
[1745287503587,0.00943278,1591.5,1591.4,14.30422]
[1745287503985,1.26608278,1591.5,1591.4,14.30422]
[1745287504489,0.00943278,1591.5,1591.4,14.30422]
[1745287504887,4.4643,1591.7,1591.6,1.25657]
[1745287505188,3.2078,1591.7,1591.4,14.30416]
[1745287505390,1.25657,1591.6,1591.5,1.25665]
[1745287505591,1.25657,1591.6,1591.5,2.93515]
[1745287505782,1.25657,1591.6,1591.5,1.6785]
[1745287506193,1.25657,1591.6,1591.5,9.25715]
[1745287506378,1.25657,1591.6,1591.5,8.0005]
[1745287506692,6.25657,1591.6,1591.5,6.31256722]
[1745287506884,8.83977,1591.6,1591.5,6.31256722]
[1745287508292,1.25657,1591.6,1591.5,6.31256722]
[1745287508791,1.25657,1591.6,1591.5,8.00866722]
[1745287509486,1.25657,1591.6,1591.5,6.31256722]
[1745287509681,7.93597,1591.6,1591.5,6.31256722]
[1745287510885,12.82697,1591.6,1591.5,6.31256722]
[1745287511281,7.82697,1591.6,1591.5,6.31256722]
[1745287512184,12.82697,1591.6,1591.5,6.31256722]
[1745287512390,7.82697,1591.6,1591.5,6.31256722]
[1745287512894,12.82697,1591.6,1591.5,6.31256722]
[1745287513995,7.82697,1591.6,1591.5,6.31256722]
[1745287514590,23.24697,1591.6,1591.5,4.15000722]
[1745287514796,1.25696,1591.1,1591.0,0.8463]
[1745287514999,4.46476,1591.1,1591.0,1.7365]
[1745287515200,4.46476,1591.1,1591.0,8.0585]
[1745287520613,3.2078,1591.1,1591.0,19.17254]
[1745287520808,3.2078,1591.4,1591.2,1.25686]
[1745287521008,4.93356,1591.6,1591.2,1.25686]
[1745287521009,1.25662,1591.6,1591.4,1.25669]
[1745287521313,1.25662,1591.6,1591.5,42.6246]
[1745287522315,0.00943278,1591.7,1591.5,48.9466]
[1745287522503,0.00943278,1591.7,1591.6,6.11357]
[1745287522706,0.00943278,1591.7,1591.6,14.32137]
[1745287523112,0.00943278,1591.7,1591.6,55.12137]
[1745287523312,0.00943278,1591.7,1591.6,55.89748208]
[1745287523726,5.984,1592.2,1591.6,55.53286462]
[1745287524018,4.46385,1592.3,1592.1,1.25616]
[1745287524205,0.8676,1592.6,1592.2,2.98719]
[1745287524408,1.25601,1592.3,1592.2,4.9389]
[1745287524609,4.4637,1592.5,1592.2,1.7311]
[1745287524910,1.25597,1592.4,1592.2,6.20437278]
[1745287525307,1.25591,1592.5,1592.2,11.27033278]
[1745287525518,3.71284106,1592.7,1592.2,12.52640278]
[1745287525715,1.2559,1592.5,1592.3,1.25601]
[1745287526016,1.2559,1592.5,1592.4,1.7311]
[1745287526409,1.25584,1592.6,1592.4,1.7311]
[1745287526608,1.25586,1592.5,1592.4,1.7311]
[1745287526809,5.0064,1592.7,1592.4,1.7311]
[1745287527017,5.0064,1592.7,1592.4,2.98704]
[1745287527213,1.25581,1592.6,1592.4,2.98704]
[1745287527414,1.25581,1592.6,1592.4,1.7311]
[1745287527614,1.25581,1592.6,1592.4,2.98703]
[1745287528007,1.25574,1592.7,1592.4,2.98703]
[1745287528208,1.25574,1592.7,1592.4,9.30903]
[1745287528906,5.984,1592.8,1592.5,1.25583]
[1745287529110,5.984,1592.8,1592.6,1.74]
[1745287529408,1.2557,1592.7,1592.6,1.74]
[1745287530215,1.25601,1592.3,1592.2,6.33143278]
[1745287530517,1.25597,1592.4,1592.2,8.08203278]
[1745287530913,4.46372,1592.5,1592.2,9.33811278]
[1745287531217,1.25598,1592.4,1592.2,9.33811278]
[1745287531617,3.2078,1592.5,1592.2,8.08203278]
[1745287531816,1.25598,1592.4,1592.2,9.33812278]
[1745287532313,1.25598,1592.4,1592.2,8.08203278]
[1745287532515,1.25601,1592.3,1592.2,8.08203278]
[1745287534214,1.25601,1592.3,1592.2,1.76003278]
[1745287536320,1.25601,1592.3,1592.2,8.08203278]
[1745287537619,3.2078,1592.5,1592.2,8.08203278]
[1745287537620,3.2078,1592.7,1592.4,1.25594]
[1745287537821,1.25583,1592.6,1592.5,2.5337]
[1745287539322,1.25583,1592.6,1592.5,8.0104]
[1745287539514,4.46363,1592.6,1592.5,6.322]
[1745287540223,1.25594,1592.4,1592.3,1.8256]
[1745287540621,4.46374,1592.4,1592.3,1.8256]
[1745287541323,1.25601,1592.3,1592.2,0.00943278]
[1745287541517,1.683,1592.3,1592.0,6.322]
[1745287541723,1.25617,1592.1,1592.0,8.081]
[1745287541923,1.25617,1592.1,1592.0,6.322]
[1745287542119,19.94993978,1592.1,1592.0,1.84465]
[1745287542321,1.25661,1591.6,1591.4,3.01572]
[1745287542621,1.25655,1591.7,1591.4,3.01572]
[1745287542820,1.25657,1591.6,1591.5,40.8]
[1745287543126,1.25657,1591.6,1591.5,42.559]
[1745287544118,1.25657,1591.6,1591.5,48.881]
[1745287544424,1.26598278,1591.7,1591.5,48.881]
[1745287544627,1.25657,1591.6,1591.5,48.881]
[1745287544927,1.26598278,1591.7,1591.5,48.881]
[1745287545324,1.25657,1591.6,1591.5,48.881]
[1745287547326,1.25657,1591.6,1591.5,8.081]
[1745287547626,3.10717,1591.6,1591.5,6.322]
[1745287548320,1.25672,1591.4,1591.3,0.00943278]
[1745287549030,3.11112,1591.4,1591.3,0.00943278]
[1745287552922,4.0728,1591.5,1591.3,0.00943278]
[1745287553127,4.46446,1591.5,1591.3,1.70263278]
[1745287553524,1.25672,1591.4,1591.3,0.00943278]
[1745287553721,2.93802,1591.4,1591.3,0.00943278]
[1745287554122,13.70032,1591.4,1591.3,0.00943278]
[1745287555323,8.70032,1591.4,1591.3,0.00943278]
[1745287556030,13.70132,1591.4,1591.3,0.00943278]
[1745287556531,8.70132,1591.4,1591.3,0.00943278]
[1745287559926,13.70132,1591.4,1591.3,0.00943278]
[1745287560627,8.70132,1591.4,1591.3,0.00943278]
[1745287561531,3.2078,1591.5,1591.4,1.25672]
[1745287561932,3.2078,1591.5,1591.4,4.70052]
[1745287562145,0.00943278,1591.7,1591.6,1.25657]
[1745287563036,0.00943278,1591.7,1591.6,9.46437]
[1745287563536,0.00943278,1591.7,1591.6,14.31837]
[1745287563836,0.00943278,1591.7,1591.6,12.83427]
[1745287564536,0.00943278,1591.7,1591.6,2.98027]
[1745287564731,0.00943278,1591.7,1591.6,11.18807]
[1745287565537,0.00943278,1591.7,1591.6,6.18807]
[1745287567030,0.00943278,1591.7,1591.6,2.98027]
[1745287567235,1.26592278,1591.7,1591.6,1.7237]
[1745287568640,1.25657,1591.6,1591.5,6.322]
[1745287568851,3.08447,1591.6,1591.5,6.322]
[1745287569144,1.25672,1591.4,1591.3,0.00943278]
[1745287569445,4.46452,1591.4,1591.3,0.00943278]
[1745287569950,2.97712,1591.4,1591.3,0.00943278]
[1745287570447,2.97712,1591.4,1591.3,1.79553278]
[1745287571042,3.2078,1591.4,1591.3,1.79553278]
[1745287571450,4.46452,1591.4,1591.3,1.79553278]
[1745287571650,4.46452,1591.4,1591.3,0.00943278]
[1745287571850,6.18492,1591.4,1591.3,0.00943278]
[1745287572051,6.18492,1591.4,1591.3,1.79553278]
[1745287573449,4.46452,1591.4,1591.3,1.79553278]
[1745287573837,3.2078,1591.6,1591.4,1.25672]
[1745287574043,1.25657,1591.6,1591.5,1.7908]
[1745287575040,4.46437,1591.6,1591.5,1.7908]
[1745287575347,1.25657,1591.6,1591.5,1.7908]
[1745287575651,4.46437,1591.6,1591.5,1.7908]
[1745287576046,1.25672,1591.4,1591.3,0.00943278]
[1745287576442,1.25672,1591.4,1591.3,1.78813278]
[1745287577153,2.93942,1591.5,1591.3,3.04493278]
[1745287577346,3.2078,1591.6,1591.3,1.78813278]
[1745287577546,1.25665,1591.5,1591.4,1.7787]
[1745287578154,1.25665,1591.5,1591.4,8.1007]
[1745287579455,16.67665,1591.5,1591.4,6.322]
[1745287579651,26.40442206,1591.5,1591.4,6.322]
[1745287580245,1.25672,1591.4,1591.3,0.00943278]
[1745287580446,11.14542,1591.4,1591.3,0.00943278]
[1745287580653,16.14542,1591.4,1591.3,0.00943278]
[1745287581160,26.56542,1591.4,1591.3,0.00943278]
[1745287582051,21.56542,1591.4,1591.3,0.00943278]
[1745287582949,22.46562,1591.4,1591.3,0.00943278]
[1745287584150,1.25672,1591.4,1591.3,0.00943278]
[1745287584350,1.25672,1591.4,1591.3,1.75613278]
[1745287586151,4.46452,1591.4,1591.3,1.75613278]
[1745287586355,4.46452,1591.4,1591.3,0.00943278]
[1745287586854,8.03302,1591.4,1591.3,0.00943278]
[1745287587154,12.88302,1591.4,1591.3,1.75613278]
[1745287587548,6.20892,1591.4,1591.3,1.75613278]
[1745287587953,1.25672,1591.4,1591.3,1.75613278]
[1745287588453,4.46452,1591.4,1591.3,1.75613278]
[1745287588756,4.46452,1591.4,1591.3,0.00943278]
[1745287588954,6.19442,1591.4,1591.3,0.00943278]
[1745287589855,16.61442,1591.4,1591.3,0.00943278]
[1745287590540,16.61442,1591.4,1591.3,2.78e-06]
[1745287591541,1.25672,1591.4,1591.3,2.78e-06]
[1745287592253,1.25669,1591.5,1591.3,2.78e-06]
[1745287592450,1.25669,1591.5,1591.3,1.76430278]
[1745287593048,0.00943278,1591.7,1591.3,6.76430278]
[1745287593253,0.00943278,1591.7,1591.6,1.25657]
[1745287593752,0.00943278,1591.7,1591.6,6.25657]
[1745287594158,0.00943278,1591.7,1591.6,5.0]
[1745287594351,1.25657,1591.6,1591.5,6.322]
[1745287598256,4.47378278,1591.7,1591.5,6.322]
[1745287598958,1.26599278,1591.7,1591.5,7.57862]
[1745287599159,1.26599278,1591.7,1591.5,6.322]
[1745287599460,1.26599278,1591.7,1591.5,7.57864]
[1745287599660,1.26599278,1591.7,1591.6,0.95]
[1745287599862,0.00943278,1591.7,1591.6,0.95]
[1745287600054,0.00943278,1591.7,1591.6,11.33697]
[1745287600252,3.70240798,1592.3,1591.6,10.96760659]
[1745287600552,4.46384,1592.3,1592.1,1.2561]
[1745287600752,4.46384,1592.3,1592.1,42.0561]
[1745287600953,3.2078,1592.3,1592.2,2.17089]
[1745287601153,4.46381,1592.3,1592.2,8.1594]
[1745287601550,3.2078,1592.3,1592.2,8.1594]
[1745287601946,4.46381,1592.3,1592.2,8.1594]
[1745287603154,4.46381,1592.3,1592.2,1.8374]
[1745287604264,3.2078,1592.3,1592.2,9.41549]
[1745287605066,0.00943278,1592.4,1592.3,1.25601]
[1745287605564,0.00943278,1592.4,1592.3,6.25601]
[1745287605969,0.00943278,1592.4,1592.3,11.10401]
[1745287607363,4.46354,1592.7,1592.6,1.25578]
[1745287607560,3.2078,1592.7,1592.6,1.25578]
[1745287608261,3.2078,1592.9,1592.8,1.25555]
[1745287608458,10.7614,1593.3,1592.7,2.6968]
[1745287608663,1.25549,1593.0,1592.9,1.25554]
[1745287609167,1.25549,1593.0,1592.9,6.322]
[1745287609770,1.25549,1593.0,1592.9,8.1047]
[1745287610171,8.13877,1593.0,1592.6,1.0114]
[1745287610371,1.25562,1592.8,1592.7,1.7827]
[1745287612081,4.965,1592.9,1592.7,3.0384]
[1745287612082,6.22057,1592.9,1592.7,3.0384]
[1745287612270,1.25562,1592.8,1592.7,9.3604]
[1745287612676,4.46339,1592.9,1592.7,9.3604]
[1745287612875,3.2078,1592.9,1592.8,2.99292]
[1745287613078,4.46334,1592.9,1592.8,1.7373]
[1745287613883,1.25562,1592.8,1592.7,6.322]
[1745287614080,1.25562,1592.8,1592.7,8.0593]
[1745287614081,3.08792,1592.8,1592.7,8.0593]
[1745287614281,3.08792,1592.8,1592.7,1.7373]
[1745287615782,3.08792,1592.8,1592.6,0.099]
[1745287615783,1.2557,1592.7,1592.6,0.099]
[1745287615982,1.2557,1592.7,1592.3,1.764]
[1745287615983,1.25594,1592.4,1592.3,1.764]
[1745287616289,4.46374,1592.4,1592.3,1.764]
[1745287616581,4.46374,1592.4,1592.3,1.60099874]
[1745287616986,6.19744,1592.4,1592.3,1.60099874]
[1745287617483,1.25601,1592.3,1592.2,0.00943278]
[1745287617689,2.92861,1592.3,1592.2,0.00943278]
[1745287619891,2.92861,1592.3,1592.2,1.80613278]
[1745287620382,1.256,1592.4,1592.2,3.06216278]
[1745287620591,0.9422,1592.5,1592.2,1.80613278]
[1745287620783,1.25596,1592.4,1592.3,1.8418]
[1745287621085,1.25596,1592.4,1592.3,3.6344]
[1745287621884,1.25592,1592.5,1592.3,4.89039]
[1745287622087,1.25592,1592.5,1592.4,1.8418]
[1745287622491,1.7103,1592.7,1592.4,3.09774]
[1745287622685,1.7103,1592.7,1592.5,1.25583]
[1745287622885,1.25578,1592.6,1592.5,3.09763]
[1745287623086,1.25578,1592.6,1592.5,1.8418]
[1745287623287,1.25578,1592.6,1592.5,8.1638]
[1745287623693,4.46358,1592.6,1592.5,6.322]
[1745287624191,1.25601,1592.3,1592.2,0.00943278]
[1745287624394,1.25633,1591.9,1591.8,1.7422]
[1745287624690,1.25646,1591.8,1591.6,6.09856]
[1745287624891,3.14066,1592.0,1591.6,4.842]
[1745287625287,1.25648,1591.8,1591.7,40.8]
[1745287625592,1.25648,1591.8,1591.7,42.5718]
[1745287626088,3.00349,1591.9,1591.7,43.82828]
[1745287626389,3.00344,1591.9,1591.8,1.7718]
[1745287626587,1.25641,1591.8,1591.7,47.122]
[1745287626793,3.05294,1591.8,1591.7,48.9664]
[1745287626985,3.05294,1591.8,1591.7,47.122]
[1745287626986,6.26074,1591.8,1591.7,47.122]
[1745287627186,6.26074,1591.8,1591.7,6.322]
[1745287627894,16.10274,1591.8,1591.7,6.322]
[1745287628190,1.25661,1591.7,1591.6,0.00943278]
[1745287628486,5.39670828,1591.7,1591.6,0.00943278]
[1745287628687,10.39670828,1591.7,1591.6,0.00943278]
[1745287628888,9.88551,1591.7,1591.6,0.00943278]
[1745287629279,9.993352,1591.7,1591.6,0.00943278]
[1745287629484,9.99335073,1591.7,1591.6,0.00943278]
[1745287629685,16.80893278,1591.7,1591.6,0.00943278]
[1745287629983,10.92223456,1591.7,1591.6,0.00943278]
[1745287630183,3.99881,1591.7,1591.6,0.00943278]
[1745287631078,3.2078,1591.8,1591.6,1.26609278]
[1745287631284,3.2078,1591.8,1591.7,1.8089]
[1745287631482,1.25653,1591.8,1591.7,1.8089]
[1745287631684,1.25661,1591.7,1591.6,0.00943278]
[1745287631880,4.9368,1591.8,1591.6,1.81833278]
[1745287632084,4.47363278,1592.0,1591.8,1.25652]
[1745287632297,4.47363278,1592.0,1591.9,1.8089]
[1745287632882,6.15513278,1592.0,1591.9,1.8089]
[1745287633184,4.47363278,1592.0,1591.9,8.1309]
[1745287638986,4.47363278,1592.0,1591.9,6.322]
[1745287639192,1.25653,1591.8,1591.7,3.6827]
[1745287639394,4.46433,1591.8,1591.7,3.6827]
[1745287639692,3.06828,1591.9,1591.7,4.93931]
[1745287639898,3.06828,1591.9,1591.8,1.8242]
[1745287640994,1.25648,1591.9,1591.8,3.08073]
[1745287641200,1.25648,1591.9,1591.8,1.8242]
[1745287641393,3.21723278,1592.0,1591.8,3.08073]
[1745287641591,4.47367278,1592.0,1591.8,3.08073]
[1745287641792,3.21723278,1592.0,1591.9,3.08066]
[1745287641992,4.47361278,1592.0,1591.9,3.08066]
[1745287642192,4.47361278,1592.0,1591.9,9.40266]
[1745287642398,3.2078,1592.4,1592.3,1.25614]
[1745287642698,4.979,1592.8,1592.5,1.25597]
[1745287642896,1.25582,1592.7,1592.6,1.8394]
[1745287643094,3.10362,1592.7,1592.6,1.8394]
[1745287644690,4.979,1592.8,1592.6,1.8394]
[1745287644895,1.25582,1592.7,1592.6,1.8394]
[1745287645190,3.00352,1592.7,1592.6,1.8394]
[1745287645397,4.46361,1592.8,1592.6,3.0953]
[1745287645599,3.2078,1592.8,1592.7,1.25582]
[1745287645801,3.2078,1592.8,1592.7,3.10002]
[1745287646194,3.2078,1592.8,1592.7,9.42202]
[1745287646694,3.2078,1592.8,1592.7,8.1662]
[1745287646990,4.46355,1592.8,1592.7,8.1662]
[1745287647501,3.2078,1592.8,1592.7,9.42202]
[1745287647897,4.46355,1592.8,1592.7,8.1662]
[1745287648504,9.46355,1592.8,1592.7,6.31256722]
[1745287648702,14.40930866,1592.8,1592.7,1.55543491]
[1745287648897,1.2559,1592.6,1592.5,0.00943278]
[1745287649205,18.03404216,1592.6,1592.5,0.00943278]
[1745287649408,23.03404216,1592.6,1592.5,0.00943278]
[1745287649607,17.5386,1592.6,1592.5,0.00943278]
[1745287651200,11.2166,1592.6,1592.5,0.00943278]
[1745287652616,11.2166,1592.6,1592.5,2.78e-06]
[1745287652808,18.14911734,1592.6,1592.5,2.78e-06]
[1745287653613,13.14911734,1592.6,1592.5,2.78e-06]
[1745287653808,6.2166,1592.6,1592.5,2.78e-06]
[1745287655705,11.2166,1592.6,1592.5,2.78e-06]
[1745287656002,23.87335338,1592.6,1592.5,2.78e-06]
[1745287656203,22.9686,1592.6,1592.5,2.78e-06]
[1745287656399,27.9686,1592.6,1592.5,2.78e-06]
[1745287657211,21.6466,1592.6,1592.5,2.78e-06]
[1745287657512,16.6466,1592.6,1592.5,2.78e-06]
[1745287657711,6.2166,1592.6,1592.5,2.78e-06]
[1745287658704,6.2166,1592.6,1592.2,1.7253]
[1745287658705,1.25614,1592.3,1592.2,1.7253]
[1745287659014,3.2078,1592.3,1592.2,2.98152]
[1745287659212,3.2078,1592.3,1592.2,14.30352]
[1745287659413,0.3792354,1592.5,1592.4,1.25606]
[1745287659615,4.46376,1592.6,1592.4,0.8768246]
[1745287659801,3.2078,1592.6,1592.5,1.7253]
[1745287660006,4.4637,1592.6,1592.5,1.7253]
[1745287660207,4.4637,1592.6,1592.5,8.0473]
[1745287661415,4.4637,1592.6,1592.5,1.7253]
[1745287662117,3.2078,1592.6,1592.5,8.0473]
[1745287662506,3.2078,1592.6,1592.5,9.30328]
[1745287663417,4.4637,1592.6,1592.5,8.0473]
[1745287663613,3.2078,1592.6,1592.5,13.0473]
[1745287663808,3.2078,1592.6,1592.5,14.30328]
[1745287665618,4.4637,1592.6,1592.5,9.30328]
[1745287665927,4.4637,1592.6,1592.5,8.0473]
[1745287666218,4.4637,1592.6,1592.5,1.7253]
[1745287667120,4.4637,1592.6,1592.5,2.98128]
[1745287667626,3.2078,1592.6,1592.5,7.98128]
[1745287668330,3.2078,1592.6,1592.5,14.30328]
[1745287668515,4.4637,1592.6,1592.5,8.0473]
[1745287668821,4.4637,1592.6,1592.5,9.30328]
[1745287670022,3.2078,1592.6,1592.5,9.30328]
[1745287670425,4.4637,1592.6,1592.5,9.30328]
[1745287671625,3.2078,1592.6,1592.5,9.30328]
[1745287672026,4.4637,1592.6,1592.5,9.30328]
[1745287673127,3.2078,1592.6,1592.5,9.30328]
[1745287673423,4.4637,1592.6,1592.5,9.30328]
[1745287673623,3.2078,1592.6,1592.5,9.30328]
[1745287675018,4.4637,1592.6,1592.5,9.30328]
[1745287676929,4.4637,1592.6,1592.5,8.0473]
[1745287677929,4.4637,1592.6,1592.5,9.30328]
[1745287679730,9.4637,1592.6,1592.5,6.322]
[1745287680023,10.4225,1592.6,1592.5,6.322]
[1745287680220,1.25606,1592.4,1592.3,1.84193278]
[1745287680420,3.2078,1592.4,1592.3,3.09807278]
[1745287681132,4.4637,1592.6,1592.5,1.25597]
[1745287681322,4.4637,1592.6,1592.4,3.08851]
[1745287681624,4.4637,1592.6,1592.5,1.8325]
[1745287682218,3.2078,1592.6,1592.5,9.41048]
[1745287682434,4.4637,1592.6,1592.5,8.1545]
[1745287682723,4.9864,1592.6,1592.5,9.41048]
[1745287683328,6.2423,1592.6,1592.5,9.41048]
[1745287683532,6.2423,1592.6,1592.5,8.1545]
[1745287685328,6.2423,1592.6,1592.5,6.322]
[1745287687130,6.2423,1592.6,1592.4,1.8268]
[1745287687131,1.25598,1592.5,1592.4,1.8268]
[1745287687333,3.10568,1592.5,1592.4,1.8268]
[1745287687725,3.10568,1592.5,1592.3,0.00943278]
[1745287687726,1.25606,1592.4,1592.3,0.00943278]
[1745287687930,8.04396,1592.4,1592.3,0.00943278]
[1745287688137,3.2078,1592.4,1592.3,0.00943278]
[1745287688433,4.46386,1592.4,1592.3,0.00943278]
[1745287691034,14.29586,1592.4,1592.3,0.00943278]
[1745287691626,14.40364885,1592.4,1592.3,0.00943278]
[1745287692233,14.40364788,1592.4,1592.3,0.00943278]
[1745287692938,9.40364788,1592.4,1592.3,0.00943278]
[1745287693326,14.40364788,1592.4,1592.3,0.00943278]
[1745287693532,9.40364788,1592.4,1592.3,0.00943278]
[1745287693836,9.40364825,1592.4,1592.3,0.00943278]
[1745287694223,9.40364799,1592.4,1592.3,0.00943278]
[1745287694731,9.29586,1592.4,1592.3,0.00943278]
[1745287694934,9.40364761,1592.4,1592.3,0.00943278]
[1745287695636,9.29586,1592.4,1592.3,0.00943278]
[1745287696523,9.40364844,1592.4,1592.3,0.00943278]
[1745287697128,9.40364862,1592.4,1592.3,0.00943278]
[1745287697434,9.29586,1592.4,1592.3,0.00943278]
[1745287697629,9.40365003,1592.4,1592.3,0.00943278]
[1745287698137,3.55294989,1592.3,1592.0,1.8073]
[1745287698334,4.4641,1592.1,1592.0,1.8073]
[1745287698534,4.4641,1592.1,1591.9,40.8]
[1745287698535,1.25638,1592.0,1591.9,40.8]
[1745287698735,2.99748,1592.0,1591.9,40.8]
[1745287699130,2.99748,1592.0,1591.7,3.98789]
[1745287699131,1.25646,1591.9,1591.8,1.8073]
[1745287699338,1.25646,1591.9,1591.8,1.81673278]
[1745287700138,1.25646,1591.9,1591.8,42.61673278]
[1745287704339,4.46426,1591.9,1591.8,42.61673278]
[1745287704728,1.25653,1591.8,1591.7,6.322]
[1745287704929,3.04343,1591.8,1591.7,2.88387]
[1745287705239,1.25661,1591.7,1591.6,42.5437]
[1745287705436,4.46441,1591.7,1591.6,42.5437]
[1745287705640,1.25677,1591.5,1591.4,1.0043]
[1745287705834,1.25677,1591.5,1591.4,1.01373278]
[1745287706030,4.46457,1591.5,1591.4,0.00943278]
[1745287706234,4.46457,1591.5,1591.4,47.13143278]
[1745287707042,4.46457,1591.5,1591.4,6.33143278]
[1745287707438,6.14177,1591.5,1591.4,6.33143278]
[1745287708339,4.46457,1591.5,1591.4,0.00943278]
[1745287709143,4.46457,1591.5,1591.4,6.33143278]
[1745287710337,6.08371,1591.6,1591.4,6.33143278]
[1745287710544,1.25671,1591.6,1591.5,2.7669]
[1745287710732,3.21723278,1591.7,1591.5,3.7457]
[1745287710939,3.21723278,1591.7,1591.6,3.02199]
[1745287711440,3.21723278,1591.7,1591.6,8.02199]
[1745287711848,4.47384278,1591.7,1591.6,8.02199]
[1745287712146,3.21723278,1591.7,1591.6,8.02199]
[1745287712342,0.00943278,1591.7,1591.6,8.02199]
[1745287712653,1.26604278,1591.7,1591.6,42.5653]
[1745287713148,1.26604278,1591.7,1591.6,42.22549539]
[1745287714146,1.26604278,1591.7,1591.6,43.48218539]
[1745287714449,0.00943278,1591.7,1591.6,48.48218539]
[1745287715448,1.25644,1592.0,1591.6,52.05349539]
[1745287715644,1.25631,1592.1,1591.8,1.25648]
[1745287715947,1.25631,1592.1,1591.9,3.13453]
[1745287716249,3.2078,1592.0,1591.9,9.45653]
[1745287716434,1.25631,1592.1,1592.0,1.7069]
[1745287716638,1.26574278,1592.1,1592.0,1.7069]
[1745287716838,3.11214278,1592.1,1592.0,1.7069]
[1745287717348,1.26574278,1592.1,1592.0,1.7069]
[1745287717649,1.26573278,1592.1,1592.0,1.7069]
[1745287718250,1.26573278,1592.1,1592.0,2.96328]
[1745287718641,0.00943278,1592.1,1592.0,2.96328]
[1745287719054,1.26573278,1592.1,1592.0,2.96328]
[1745287719242,1.26573278,1592.1,1592.0,1.7069]
[1745287720943,3.00203278,1592.1,1592.0,1.7069]
[1745287721251,1.25638,1592.0,1591.9,1.8781]
[1745287721445,3.2078,1592.0,1591.6,40.8]
[1745287721654,3.2078,1591.7,1591.6,43.02659]
[1745287721948,3.2078,1591.7,1591.6,41.7699]
[1745287722342,4.46441,1591.7,1591.6,41.7699]
[1745287722543,3.2078,1591.7,1591.6,41.7699]
[1745287722948,4.46441,1591.7,1591.6,41.7699]
[1745287724549,4.46441,1591.7,1591.6,43.539]
[1745287728950,3.2078,1591.7,1591.6,44.79569]
[1745287729154,4.46441,1591.7,1591.6,43.539]
[1745287731251,4.46441,1591.7,1591.6,2.739]
[1745287731457,3.2078,1591.7,1591.4,5.77233278]
[1745287731758,1.25671,1591.6,1591.5,43.4717]
[1745287732057,1.25671,1591.6,1591.5,41.7358]
[1745287734159,1.25671,1591.6,1591.5,0.9358]
[1745287734354,1.25677,1591.5,1591.4,0.94433278]
[1745287734561,4.46457,1591.5,1591.4,0.00943278]
[1745287735050,5.41277,1591.5,1591.4,0.00943278]
[1745287736259,5.41277,1591.5,1591.2,41.7052]
[1745287736260,1.25693,1591.3,1591.2,40.8]
[1745287736457,4.46473,1591.3,1591.2,40.8]
[1745287737160,2.98531,1591.4,1591.2,48.37901]
[1745287738158,1.25693,1591.3,1591.2,48.37901]
[1745287738360,1.25686,1591.4,1591.2,48.37895]
[1745287738858,5.8844,1591.5,1591.2,47.122]
[1745287739159,2.9853,1591.4,1591.2,48.37899]
[1745287740658,3.2078,1591.5,1591.2,47.122]
[1745287740961,4.02464,1591.6,1591.4,1.25683]
[1745287741160,4.02464,1591.6,1591.4,6.322]
[1745287741161,1.25677,1591.5,1591.4,6.322]
[1745287741362,4.46457,1591.5,1591.4,6.322]
[1745287741552,6.26667,1591.5,1591.4,6.322]
[1745287746266,1.25693,1591.3,1591.2,40.8]
[1745287747365,1.25693,1591.3,1591.2,47.122]
[1745287747969,1.25693,1591.3,1591.2,48.803]
[1745287749967,4.46473,1591.3,1591.2,48.803]
[1745287751272,14.89473,1591.3,1591.2,48.803]
[1745287751475,4.46473,1591.3,1591.2,48.803]
[1745287752571,3.2078,1591.5,1591.2,48.803]
[1745287752875,1.25687,1591.4,1591.3,1.57725731]
[1745287753375,3.10417,1591.4,1591.3,1.57725731]
[1745287755075,4.46463,1591.5,1591.3,2.83415731]
[1745287755578,1.25686,1591.4,1591.2,48.37894]
[1745287755869,1.25693,1591.3,1591.2,47.122]
[1745287756075,4.46473,1591.3,1591.2,47.122]
[1745287757475,4.46473,1591.3,1591.2,6.322]